bitfinex-derivatives/quotes_ETHF0:USTF0_20250105
["timestamp","ask_amount","ask_price","bid_price","bid_amount"]
[1736085370278,0.24873,3619.2,3619.0,0.24874]
[1736085370673,0.24873,3619.3,3619.1,0.24873]
[1736085371380,0.24873,3619.2,3619.0,0.24874]
[1736085377072,6.44393829,3619.7,3619.0,0.24874]
[1736085377278,0.24873,3619.2,3619.0,0.24874]
[1736085380474,2.16613829,3619.6,3618.8,3.2078]
[1736085380872,0.24873,3619.3,3619.1,0.24873]
[1736085381184,0.24873,3619.2,3619.1,0.24874]
[1736085381684,2.16613829,3619.6,3619.5,0.24871]
[1736085382980,2.41483829,3619.6,3619.5,0.24871]
[1736085383183,0.2487,3619.6,3619.5,0.24871]
[1736085384571,1.07,3620.0,3619.3,3.2078]
[1736085384776,0.24871,3619.5,3619.4,0.24871]
[1736085384976,1.07,3620.0,3619.4,0.24871]
[1736085385177,0.24871,3619.6,3619.5,0.24871]
[1736085386081,0.24868,3619.9,3619.8,0.24869]
[1736085386285,0.2487,3619.7,3619.6,0.2487]
[1736085386480,0.2487,3619.7,3619.3,3.2078]
[1736085386481,2.16613829,3620.1,3619.3,3.2078]
[1736085386678,0.2487,3619.6,3619.5,0.24871]
[1736085386987,0.24872,3619.4,3618.9,11.88132359]
[1736085387281,0.24872,3619.4,3619.3,0.24872]
[1736085390190,0.24873,3619.3,3619.2,0.24873]
[1736085390490,0.24872,3619.4,3618.9,3.2078]
[1736085390691,0.24872,3619.4,3619.3,0.24872]
[1736085390987,0.24873,3619.2,3619.1,0.24873]
[1736085391586,2.16613829,3619.7,3618.9,3.2078]
[1736085391790,0.24874,3619.1,3619.0,0.24874]
[1736085391990,0.24874,3619.2,3619.0,0.24874]
[1736085393490,0.24874,3619.2,3619.1,0.24874]
[1736085397591,0.24873,3619.2,3619.0,0.24874]
[1736085397798,0.24873,3619.2,3619.1,0.24874]
[1736085398798,2.41486829,3619.3,3619.2,0.24873]
[1736085400101,0.24873,3619.3,3619.2,0.24873]
[1736085401102,0.24873,3619.3,3618.7,3.2078]
[1736085401297,0.24873,3619.3,3619.1,0.24873]
[1736085401803,0.24874,3619.1,3618.9,0.24875]
[1736085402003,3.25706811,3619.4,3618.7,3.2078]
[1736085402209,0.24874,3619.1,3618.9,0.24875]
[1736085402405,0.24874,3619.2,3619.0,0.24874]
[1736085402604,0.24873,3619.3,3619.1,0.24873]
[1736085402803,3.50578811,3619.4,3619.2,0.24873]
[1736085403398,3.25706811,3619.4,3618.7,3.2078]
[1736085403604,3.25706811,3619.4,3619.3,0.24872]
[1736085404404,2.17052059,3619.4,3619.3,0.24872]
[1736085406006,2.17052059,3619.4,3619.1,3.2078]
[1736085406007,0.24872,3619.3,3619.2,0.24873]
[1736085406207,2.17052059,3619.4,3619.1,3.2078]
[1736085406409,4.34596706,3619.7,3619.1,3.2078]
[1736085406410,0.24872,3619.3,3619.2,0.24873]
[1736085406603,0.24871,3619.5,3619.1,0.24873]
[1736085406808,0.24873,3619.2,3619.1,0.24873]
[1736085407511,0.24873,3619.3,3619.2,0.24873]
[1736085407708,0.24873,3619.2,3619.1,0.24874]
[1736085407914,0.24873,3619.2,3619.1,4.6640569]
[1736085408713,0.24873,3619.2,3619.1,4.4153169]
[1736085409413,0.24873,3619.2,3619.1,4.6640569]
[1736085409815,0.24873,3619.2,3619.1,4.4153169]
[1736085411019,0.24875,3618.9,3618.8,8.67352359]
[1736085411220,3.45655,3618.9,3618.8,8.67352359]
[1736085412116,3.45655,3618.9,3618.3,0.24879]
[1736085412117,7.9685694,3618.9,3618.3,6.52162506]
[1736085412321,0.24878,3618.6,3618.3,6.77041506]
[1736085413615,2.41913146,3618.6,3618.3,0.24879]
[1736085415621,0.24878,3618.5,3618.3,0.24879]
[1736085415923,0.24878,3618.5,3618.3,0.68509]
[1736085418321,0.24879,3618.4,3618.3,0.68509]
[1736085418523,0.24879,3618.4,3618.3,0.4363]
[1736085418926,0.24879,3618.4,3618.3,0.68509]
[1736085420525,0.24878,3618.5,3618.3,0.68509]
[1736085420825,0.24879,3618.4,3618.3,0.4363]
[1736085422627,0.24879,3618.3,3618.2,0.8579]
[1736085424120,1.07,3618.5,3618.1,3.2078]
[1736085424321,0.6692,3618.2,3618.1,3.2078]
[1736085424821,0.6692,3618.2,3617.8,6.93622506]
[1736085424822,0.24882,3617.9,3617.8,6.93622506]
[1736085425226,0.24882,3617.9,3617.8,0.4146]
[1736085426230,0.24883,3617.7,3617.6,6.52162506]
[1736085426422,1.31883,3617.7,3617.6,6.52162506]
[1736085427023,0.24887,3617.2,3617.1,3.2078]
[1736085427725,0.24888,3617.1,3617.0,6.52162506]
[1736085428132,4.5133,3617.6,3617.0,6.52162506]
[1736085428322,0.24888,3617.1,3617.0,6.52162506]
[1736085428525,0.2489,3616.7,3616.6,0.4243]
[1736085430328,0.24892,3616.5,3616.4,0.4215]
[1736085430931,0.4379,3616.8,3616.4,0.4215]
[1736085431230,0.2489,3616.8,3616.4,0.67042]
[1736085431524,3.2078,3617.2,3616.4,0.4215]
[1736085431729,3.2078,3617.2,3616.9,0.24888]
[1736085431730,4.2778,3617.2,3616.9,0.24888]
[1736085431929,4.52667,3617.2,3617.0,1.2759]
[1736085432332,3.45667,3617.2,3617.0,1.2759]
[1736085432729,3.45667,3617.2,3616.9,0.24889]
[1736085432931,3.45667,3617.2,3616.5,3.2078]
[1736085433134,0.24887,3617.2,3616.8,0.24889]
[1736085433335,0.24887,3617.2,3616.9,0.4449]
[1736085433635,1.07,3617.4,3616.9,0.4449]
[1736085433931,3.2078,3617.5,3616.9,0.4449]
[1736085434125,0.24885,3617.6,3617.2,0.24886]
[1736085434322,0.24885,3617.6,3617.3,0.4352]
[1736085434534,0.24884,3617.6,3617.3,0.4352]
[1736085435032,1.07,3617.7,3617.3,0.4352]
[1736085435428,0.24884,3617.6,3617.3,0.4352]
[1736085435635,0.24884,3617.6,3617.3,0.68406]
[1736085438634,1.07,3617.7,3617.3,0.4352]
[1736085438840,0.24885,3617.5,3617.3,0.4352]
[1736085440736,0.24884,3617.6,3617.3,0.68406]
[1736085441239,0.24884,3617.6,3617.3,0.4352]
[1736085441738,0.24885,3617.5,3617.3,0.4352]
[1736085442337,0.24884,3617.6,3617.3,0.68406]
[1736085442542,0.24885,3617.5,3617.3,0.4352]
[1736085444137,1.07,3617.7,3617.3,0.4352]
[1736085444343,0.24885,3617.4,3617.3,0.4352]
[1736085445946,0.24888,3617.0,3616.9,3.2078]
[1736085446443,1.32388,3617.0,3616.9,3.2078]
[1736085446641,0.2489,3616.7,3616.6,0.412]
[1736085452047,0.24892,3616.5,3616.2,3.2078]
[1736085452350,0.24893,3616.4,3616.2,3.2078]
[1736085452551,0.24892,3616.5,3616.2,3.6373]
[1736085452746,1.3149,3616.6,3616.3,0.4252]
[1736085452947,0.24893,3616.4,3616.3,0.4252]
[1736085453343,1.3149,3616.6,3616.2,3.2078]
[1736085453853,4.5227,3616.6,3615.8,3.6373]
[1736085454045,0.24896,3615.9,3615.8,3.6373]
[1736085455353,0.24896,3615.9,3615.8,3.2078]
[1736085456448,1.6973,3616.5,3615.8,3.2078]
[1736085456854,0.24896,3615.9,3615.8,3.2078]
[1736085461750,0.4186,3616.2,3615.6,0.8333]
[1736085461951,0.24897,3615.7,3615.6,0.8333]
[1736085479266,0.24897,3615.7,3615.6,0.4254]
[1736085483463,0.24898,3615.6,3615.5,0.4102]
[1736085483665,0.4161,3615.6,3615.3,0.4371]
[1736085483873,0.4161,3615.6,3614.8,3.2078]
[1736085483874,0.24902,3615.0,3614.9,0.4335]
[1736085484063,0.24902,3615.0,3614.9,0.8718]
[1736085484262,1.077,3615.3,3614.8,3.2078]
[1736085484466,0.24903,3614.9,3614.8,3.2078]
[1736085484668,0.24903,3614.8,3614.7,0.436]
[1736085485164,0.24903,3615.0,3614.7,0.68504]
[1736085485765,0.24903,3615.0,3614.7,0.436]
[1736085486069,1.077,3615.5,3614.7,0.436]
[1736085486266,1.077,3615.5,3614.8,3.2078]
[1736085486267,3.24735146,3615.5,3614.8,3.2078]
[1736085486466,2.41934146,3615.5,3615.2,0.24901]
[1736085486662,0.24899,3615.4,3615.3,1.28]
[1736085490363,0.24903,3614.9,3614.8,3.2078]
[1736085491568,2.17035146,3615.5,3614.8,3.45683]
[1736085491766,2.17035146,3615.5,3614.9,0.417]
[1736085491968,0.24902,3615.0,3614.9,0.417]
[1736085496676,0.24903,3614.9,3614.8,3.2078]
[1736085497779,5.80695146,3615.3,3614.7,0.4085]
[1736085497980,0.24903,3614.8,3614.7,0.4085]
[1736085498580,0.24904,3614.7,3614.6,4.33230744]
[1736085499181,5.37815146,3614.9,3614.4,7.54010744]
[1736085499376,6.00073146,3614.9,3614.5,0.4085]
[1736085499578,0.24905,3614.6,3614.5,0.4085]
[1736085500879,2.41940146,3614.6,3614.5,0.4085]
[1736085501280,0.24907,3614.2,3614.1,4.33230744]
[1736085502480,0.24908,3614.1,3614.0,7.96660744]
[1736085503069,3.24735146,3614.6,3614.0,7.96660744]
[1736085503478,2.17035146,3614.6,3614.0,7.96660744]
[1736085503673,3.25552719,3614.8,3614.7,0.24904]
[1736085503883,0.83787865,3614.8,3614.7,0.24904]
[1736085504076,6.48306606,3615.6,3614.9,0.24903]
[1736085504377,2.75176706,3615.0,3614.9,3.45683]
[1736085505380,5.68146882,3615.2,3615.0,0.24902]
[1736085505381,0.24901,3615.2,3615.0,0.24902]
[1736085505679,0.249,3615.3,3615.0,0.24902]
[1736085506076,0.24901,3615.2,3615.0,0.24902]
[1736085506276,0.4362,3615.4,3615.1,4.34456031]
[1736085506783,0.249,3615.3,3615.1,4.34456031]
[1736085506982,0.24901,3615.2,3615.1,4.34456031]
[1736085511586,0.24901,3615.2,3614.9,9.72464047]
[1736085511587,0.24902,3615.0,3614.9,7.55236031]
[1736085512993,0.24902,3615.0,3614.9,3.2078]
[1736085513294,0.24903,3614.9,3614.8,4.34456031]
[1736085513495,1.12743,3614.9,3614.8,4.34456031]
[1736085516192,1.12743,3614.9,3614.7,4.34456031]
[1736085516393,0.4203,3614.8,3614.7,4.34456031]
[1736085516601,0.4203,3614.8,3614.7,4.59360031]
[1736085516900,0.4203,3614.8,3614.7,4.34456031]
[1736085517895,0.4203,3614.8,3614.7,4.59360031]
[1736085518102,0.4203,3614.8,3614.7,4.34456031]
[1736085519198,0.66933,3614.8,3614.7,4.34456031]
[1736085520302,0.4203,3614.8,3614.7,4.34456031]
[1736085520497,0.4203,3614.8,3614.7,4.59360031]
[1736085520802,0.4203,3614.8,3614.7,4.34456031]
[1736085521603,0.4203,3614.8,3614.7,4.5932368]
[1736085521909,0.41781171,3614.8,3614.7,4.5932368]
[1736085522101,0.66684171,3614.8,3614.7,4.5932368]
[1736085522902,0.66684171,3614.8,3614.6,4.59739953]
[1736085524505,0.41781171,3614.8,3614.7,4.34835953]
[1736085524705,0.41781171,3614.8,3614.7,4.59739953]
[1736085524902,0.66684171,3614.8,3614.7,4.59739953]
[1736085525613,0.66684171,3614.8,3614.7,4.34835953]
[1736085527105,0.66684171,3614.8,3614.7,4.59739953]
[1736085527307,0.41781171,3614.8,3614.7,4.59739953]
[1736085528508,0.41781171,3614.8,3614.7,11.36044569]
[1736085528807,0.41781171,3614.8,3614.7,14.56824569]
[1736085530214,0.66684171,3614.8,3614.7,14.31920569]
[1736085531609,0.66684171,3614.8,3614.7,7.55758959]
[1736085533306,0.66684171,3614.8,3614.7,4.34978959]
[1736085533709,0.24904,3614.7,3614.6,4.34978959]
[1736085535114,0.41781171,3614.8,3614.6,4.34978959]
[1736085535307,0.41781171,3614.8,3614.5,4.34978959]
[1736085535616,0.24905,3614.6,3614.5,4.34978959]
[1736085539721,0.24907,3614.3,3614.2,7.55758959]
[1736085540121,0.24907,3614.3,3614.2,4.34978959]
[1736085540612,3.2078,3614.6,3614.1,4.34978959]
[1736085540818,1.53667,3614.2,3614.1,4.34978959]
[1736085541919,0.8676,3614.2,3614.1,0.24908]
[1736085542120,4.33998803,3614.8,3614.5,0.24905]
[1736085542121,4.58902803,3614.8,3614.5,0.24905]
[1736085542319,4.33998803,3614.8,3614.6,3.45684]
[1736085542918,4.58902803,3614.8,3614.6,3.2078]
[1736085543119,0.24904,3614.7,3614.6,3.2078]
[1736085543325,0.24904,3614.7,3614.6,9.72464047]
[1736085543522,0.24902,3615.0,3614.8,0.24903]
[1736085543917,0.4114,3615.2,3614.6,9.72464047]
[1736085544113,0.24904,3614.8,3614.6,9.72464047]
[1736085544319,0.24904,3614.7,3614.6,9.72464047]
[1736085545526,0.24904,3614.7,3614.6,7.80136217]
[1736085547025,0.24904,3614.7,3614.6,4.59356217]
[1736085551732,0.24904,3614.7,3614.6,4.84261217]
[1736085552135,0.24904,3614.7,3614.6,4.59356217]
[1736085552334,0.24904,3614.7,3614.6,11.11040264]
[1736085559241,0.24904,3614.7,3614.6,4.59356217]
[1736085563251,0.4216,3615.1,3614.6,4.59356217]
[1736085563451,0.24904,3614.7,3614.6,4.84260217]
[1736085563749,0.24904,3614.7,3614.6,4.84261217]
[1736085564151,0.24903,3614.8,3614.7,0.24904]
[1736085564346,0.24904,3614.7,3614.6,4.84260217]
[1736085564556,0.24904,3614.7,3614.6,4.59356217]
[1736085564747,0.24904,3614.7,3614.6,4.84261217]
[1736085564947,0.24904,3614.7,3614.6,0.24905]
[1736085565245,3.25913423,3615.0,3614.5,8.67352359]
[1736085565850,0.24905,3614.7,3614.5,8.67352359]
[1736085566045,0.24904,3614.8,3614.6,7.80778251]
[1736085566250,3.25913423,3615.0,3614.6,7.80778251]
[1736085566952,0.24904,3614.7,3614.6,8.05682251]
[1736085567255,0.24904,3614.8,3614.7,4.59998251]
[1736085567456,0.24904,3614.8,3614.7,4.84902251]
[1736085568155,3.68073423,3615.1,3614.7,4.84902251]
[1736085568455,3.68073423,3615.1,3614.8,0.24903]
[1736085568655,0.24903,3614.9,3614.8,0.24903]
[1736085569352,0.24903,3614.9,3614.7,5.26962251]
[1736085569949,0.24903,3614.9,3614.8,4.59998251]
[1736085571055,0.4216,3615.1,3614.8,4.59998251]
[1736085571256,3.67053423,3615.2,3615.1,0.24901]
[1736085571451,3.67053423,3615.2,3614.8,4.59998251]
[1736085571756,3.67053423,3615.2,3615.1,0.24901]
[1736085572955,0.4114,3615.2,3615.1,11.3783597]
[1736085573156,0.66041,3615.2,3615.1,11.3783597]
[1736085573459,0.66041,3615.2,3615.1,11.1293497]
[1736085573949,0.66041,3615.2,3615.1,11.3783597]
[1736085574149,0.66041,3615.2,3615.1,11.1293497]
[1736085576457,0.66041,3615.2,3615.1,4.59998251]
[1736085577950,0.66041,3615.2,3615.1,11.1293497]
[1736085581059,0.4114,3615.2,3615.1,11.3783597]
[1736085581655,0.66041,3615.2,3615.1,11.3783597]
[1736085581961,0.6934,3615.3,3615.1,11.1293497]
[1736085582256,0.6934,3615.3,3615.2,0.24901]
[1736085583060,0.6934,3615.3,3615.2,4.84899251]
[1736085583761,0.6934,3615.3,3615.2,4.59998251]
[1736085583961,0.6934,3615.3,3615.2,4.84899251]
[1736085584263,0.6934,3615.3,3615.2,4.59998251]
[1736085586571,0.6934,3615.3,3615.2,4.84899251]
[1736085586862,0.6934,3615.3,3615.2,4.59998251]
[1736085587056,0.6934,3615.3,3615.2,4.84899251]
[1736085589862,0.4208,3615.5,3615.2,4.59998251]
[1736085590069,0.66979,3615.5,3615.4,0.24899]
[1736085590965,0.66979,3615.5,3615.4,4.84897251]
[1736085591869,0.4208,3615.5,3615.4,4.84897251]
[1736085592168,0.4208,3615.5,3615.4,4.59817901]
[1736085593564,0.4208,3615.5,3615.4,0.24899]
[1736085593869,0.66979,3615.5,3615.4,0.24899]
[1736085594363,0.4208,3615.5,3615.4,0.24899]
[1736085594672,0.4208,3615.5,3615.4,11.37243398]
[1736085594970,0.66979,3615.5,3615.4,11.37243398]
[1736085595159,0.66979,3615.5,3615.4,11.12344398]
[1736085595968,0.66979,3615.5,3615.4,4.59407679]
[1736085596567,0.66979,3615.5,3615.4,4.84306679]
[1736085597167,0.4208,3615.5,3615.4,4.84306679]
[1736085597569,0.4208,3615.5,3615.4,4.59687807]
[1736085598267,0.4264,3615.8,3615.4,4.34788807]
[1736085598578,0.4264,3615.8,3615.7,0.24897]
[1736085600474,0.4264,3615.8,3615.7,4.59685807]
[1736085601677,0.439,3615.9,3615.7,4.34788807]
[1736085601879,0.439,3615.9,3615.8,0.24896]
[1736085602681,0.68796,3615.9,3615.8,0.24896]
[1736085602873,0.439,3615.9,3615.7,4.34788807]
[1736085603078,0.24896,3615.8,3615.7,4.34788807]
[1736085604389,0.439,3615.9,3615.4,4.59687807]
[1736085604681,0.24899,3615.5,3615.4,4.34788807]
[1736085606383,0.24899,3615.5,3615.4,4.59687807]
[1736085607888,0.24899,3615.5,3615.4,4.34788807]
[1736085608088,3.69813423,3615.9,3615.4,4.34788807]
[1736085608387,0.24898,3615.6,3615.4,4.59687807]
[1736085608587,0.69889,3615.5,3615.4,4.59687807]
[1736085608790,0.4499,3615.5,3615.4,4.59687807]
[1736085609388,0.8824,3615.5,3615.4,4.59687807]
[1736085610480,3.69813423,3615.9,3615.4,4.59687807]
[1736085610481,3.69813423,3615.9,3615.8,0.24896]
[1736085610677,4.13063423,3615.9,3615.8,0.24896]
[1736085612789,0.8715,3615.9,3615.8,11.33929353]
[1736085614089,0.8715,3615.9,3615.8,4.80992634]
[1736085616191,3.50805423,3616.5,3616.4,0.24892]
[1736085616382,3.25913423,3616.5,3616.4,0.24892]
[1736085617181,4.13273423,3616.6,3616.5,0.24892]
[1736085618190,3.69313423,3616.6,3616.5,0.24892]
[1736085618587,0.434,3616.6,3616.5,0.24892]
[1736085618996,3.25913423,3617.0,3616.4,4.34721913]
[1736085619193,3.25913423,3617.0,3616.9,0.24889]
[1736085620691,0.4396,3617.3,3617.2,0.24887]
[1736085622794,0.4052,3617.5,3617.4,0.24885]
[1736085625387,0.4052,3617.5,3617.1,4.34721913]
[1736085625587,0.24887,3617.2,3617.1,4.34721913]
[1736085626596,0.4052,3617.5,3616.8,0.24889]
[1736085626803,0.24888,3617.0,3616.8,0.24889]
[1736085627095,0.24884,3617.7,3617.4,0.24885]
[1736085627290,0.8498,3617.7,3617.4,0.24885]
[1736085627798,0.8498,3617.7,3616.9,3.2078]
[1736085627994,0.24887,3617.2,3617.0,0.24888]
[1736085628200,0.67368,3617.1,3616.9,3.2078]
[1736085628404,0.8364,3617.0,3616.9,3.45669]
[1736085628696,0.8364,3617.0,3616.6,4.34721913]
[1736085628896,1.08529,3617.0,3616.7,0.2489]
[1736085629199,0.2489,3616.7,3616.6,4.34721913]
[1736085629497,0.2489,3616.8,3616.6,4.34721913]
[1736085629696,0.8364,3617.0,3616.5,3.2078]
[1736085630198,0.2489,3616.8,3616.5,3.2078]
[1736085630399,0.24889,3616.9,3616.5,3.2078]
[1736085630696,0.2489,3616.7,3616.5,3.2078]
[1736085630892,0.8364,3617.0,3616.5,3.2078]
[1736085631097,0.24891,3616.6,3616.5,3.2078]
[1736085632092,0.24893,3616.4,3616.1,3.2078]
[1736085632598,0.24893,3616.3,3616.1,3.2078]
[1736085632797,0.24894,3616.2,3616.1,3.2078]
[1736085632997,1.12984,3616.2,3616.1,3.2078]
[1736085633297,0.24894,3616.1,3616.0,4.60774686]
[1736085633498,0.67994,3616.1,3616.0,4.60774686]
[1736085634004,0.67994,3616.1,3616.0,0.26052773]
[1736085635799,0.24897,3615.7,3615.6,3.2078]
[1736085638297,0.24899,3615.5,3615.4,4.34721913]
[1736085638803,0.24899,3615.5,3615.4,1.52305913]
[1736085639101,0.24899,3615.4,3615.3,6.5208287]
[1736085640004,3.2078,3615.6,3614.5,6.5208287]
[1736085640005,0.24905,3614.6,3614.5,6.5208287]
[1736085641507,3.83033,3615.2,3614.4,3.6308]
[1736085641702,0.24905,3614.5,3614.4,3.6308]
[1736085642300,1.2426,3615.1,3614.4,3.6308]
[1736085642500,0.24904,3614.8,3614.5,0.24905]
[1736085642702,1.2426,3615.1,3614.5,0.24905]
[1736085643403,0.24904,3614.7,3614.4,3.87986]
[1736085643605,1.2426,3615.1,3614.4,3.87986]
[1736085644008,0.24904,3614.7,3614.4,3.87986]
[1736085644801,0.24904,3614.7,3614.4,3.6308]
[1736085645003,0.24904,3614.7,3614.5,0.24905]
[1736085645608,0.24904,3614.7,3614.4,3.6308]
[1736085645905,0.24905,3614.6,3614.4,3.87986]
[1736085646108,1.2426,3615.1,3614.4,3.87986]
[1736085646109,1.2426,3615.1,3614.4,3.6308]
[1736085646310,0.24905,3614.5,3614.4,3.6308]
[1736085651406,1.86515,3615.1,3614.4,3.6308]
[1736085651407,0.24905,3614.6,3614.4,3.6308]
[1736085651610,0.24905,3614.6,3614.4,3.87986]
[1736085652511,1.2426,3615.1,3614.4,3.6308]
[1736085652710,0.24905,3614.5,3614.4,3.6308]
[1736085655408,0.24905,3614.5,3614.4,3.2078]
[1736085655911,3.2078,3614.8,3613.5,9.7286287]
[1736085656107,1.079,3615.0,3613.6,0.4156]
[1736085656108,0.24912,3613.7,3613.6,0.4156]
[1736085660221,0.2491,3613.9,3613.6,0.66471]
[1736085660409,0.24911,3613.8,3613.6,0.66471]
[1736085660714,4.4987,3614.4,3613.6,0.4156]
[1736085660916,0.24907,3614.4,3614.2,0.24907]
[1736085661113,0.24907,3614.4,3614.3,0.8805]
[1736085661716,1.2992,3614.9,3614.3,0.8805]
[1736085661912,0.24906,3614.5,3614.3,1.12957]
[1736085662112,0.24906,3614.4,3614.3,0.8805]
[1736085662715,1.2992,3614.9,3614.3,0.8805]
[1736085662916,0.24906,3614.4,3614.3,0.8805]
[1736085666824,0.24906,3614.4,3614.3,0.4356]
[1736085667328,0.24906,3614.5,3614.3,0.4356]
[1736085668017,0.24906,3614.4,3614.3,0.4356]
[1736085670319,0.24906,3614.5,3614.3,0.4356]
[1736085671627,0.4057,3614.4,3614.3,0.4356]
[1736085671822,0.65476,3614.4,3614.3,0.4356]
[1736085674628,0.4057,3614.4,3614.2,3.2078]
[1736085674830,1.10727,3614.3,3614.2,3.2078]
[1736085678829,0.8582,3614.3,3613.6,3.2078]
[1736085679129,0.24911,3613.7,3613.6,3.2078]
[1736085682426,0.24911,3613.7,3613.1,6.5208287]
[1736085682427,0.24914,3613.2,3613.1,9.7286287]
[1736085682626,0.24914,3613.2,3613.1,6.5208287]
[1736085684336,0.24917,3612.8,3612.7,9.7286287]
[1736085685828,0.24917,3612.8,3612.7,3.2078]
[1736085686831,0.62287,3613.2,3612.5,6.5208287]
[1736085686832,0.24919,3612.6,3612.5,6.5208287]
[1736085687529,0.8853,3612.7,3612.3,3.2078]
[1736085687530,0.2492,3612.4,3612.3,3.2078]
[1736085692439,0.24924,3611.8,3611.7,0.4463]
[1736085696643,0.24924,3611.8,3611.7,3.6541]
[1736085702250,0.24924,3611.8,3611.7,0.4463]
[1736085703246,0.8244,3612.1,3611.3,3.2078]
[1736085703546,0.24927,3611.4,3611.3,3.2078]
[1736085704353,0.4284,3611.7,3610.8,9.7286287]
[1736085704354,0.2493,3610.9,3610.8,9.7286287]
[1736085704543,0.2493,3610.9,3610.8,10.1449287]
[1736085704745,0.2493,3611.0,3610.8,10.1449287]
[1736085705047,0.2493,3610.9,3610.8,10.1449287]
[1736085705747,0.2493,3610.9,3610.8,9.7286287]
[1736085706252,0.2493,3610.9,3610.8,3.2078]
[1736085706747,0.24934,3610.4,3610.3,3.2078]
[1736085707151,0.4058,3610.9,3610.3,3.2078]
[1736085707352,0.24932,3610.7,3610.4,0.4097]
[1736085707942,3.2078,3611.1,3610.4,0.4097]
[1736085708143,0.2493,3611.0,3610.4,0.65904]
[1736085708348,0.24932,3610.7,3610.4,0.4097]
[1736085708547,0.24932,3610.6,3610.4,0.4097]
[1736085709349,3.2078,3611.1,3610.4,0.4097]
[1736085709758,0.24931,3610.8,3610.4,0.4097]
[1736085709948,3.2078,3611.1,3610.4,0.4097]
[1736085710256,0.24931,3610.8,3610.4,0.65903]
[1736085710658,0.24932,3610.8,3610.4,0.65903]
[1736085710951,3.2078,3611.1,3610.5,0.24933]
[1736085711154,3.2078,3611.1,3610.4,0.4097]
[1736085711155,0.8199,3611.5,3610.9,3.2078]
[1736085711356,0.24929,3611.2,3611.0,0.4142]
[1736085711856,0.24929,3611.1,3611.0,0.4142]
[1736085712355,0.4125,3611.5,3611.0,0.4142]
[1736085712554,0.24929,3611.2,3611.0,0.4142]
[1736085712954,0.24926,3611.5,3611.0,0.4142]
[1736085713456,0.4349,3611.8,3611.2,0.24928]
[1736085713656,0.24926,3611.5,3611.1,0.24928]
[1736085713857,0.24926,3611.5,3611.0,0.4142]
[1736085713858,0.24926,3611.5,3611.2,0.24928]
[1736085714057,0.4349,3611.8,3611.1,0.24929]
[1736085714258,0.24927,3611.4,3611.1,0.24929]
[1736085714649,0.4349,3611.8,3611.1,0.24929]
[1736085714853,0.24926,3611.5,3611.1,0.24929]
[1736085715047,3.2078,3612.4,3611.4,3.2078]
[1736085715251,0.4285,3612.3,3611.4,3.2078]
[1736085715555,1.3017,3612.3,3611.4,3.2078]
[1736085715957,1.92473,3612.3,3611.4,3.2078]
[1736085716158,0.24926,3611.6,3611.4,3.2078]
[1736085717160,0.62304,3612.2,3611.4,3.2078]
[1736085717460,0.24926,3611.6,3611.4,3.2078]
[1736085717659,0.62304,3612.2,3611.4,3.2078]
[1736085717863,0.24926,3611.6,3611.4,3.2078]
[1736085718348,0.24926,3611.5,3611.4,3.2078]
[1736085718555,1.10706,3611.5,3611.4,3.2078]
[1736085718853,0.24929,3611.1,3610.8,3.45711]
[1736085719057,0.8578,3611.5,3610.9,0.2493]
[1736085719058,0.24928,3611.3,3610.9,0.2493]
[1736085719259,0.8509,3611.4,3610.9,0.2493]
[1736085719454,0.24928,3611.2,3610.9,0.2493]
[1736085719650,0.8509,3611.4,3610.8,3.4571]
[1736085719855,0.24928,3611.3,3610.8,3.4571]
[1736085720059,0.24928,3611.2,3610.9,0.2493]
[1736085720256,0.24929,3611.1,3610.8,3.45711]
[1736085720755,0.8509,3611.4,3610.8,3.2078]
[1736085720953,0.24931,3610.8,3610.4,3.2078]
[1736085721156,0.4434,3610.7,3610.5,0.24933]
[1736085721558,0.4434,3610.7,3610.6,0.24932]
[1736085721754,0.4434,3610.7,3610.4,3.2078]
[1736085721949,0.4434,3610.7,3610.5,0.24933]
[1736085722457,0.4434,3610.7,3610.4,3.2078]
[1736085722654,0.4434,3610.7,3610.5,0.24933]
[1736085723158,0.4434,3610.7,3610.6,0.24932]
[1736085723460,0.4256,3610.8,3610.7,0.24932]
[1736085723661,0.4256,3610.8,3610.4,3.2078]
[1736085723860,0.4256,3610.8,3610.6,0.24932]
[1736085724063,0.4256,3610.8,3610.7,0.4347]
[1736085726761,3.2078,3611.1,3610.7,0.4347]
[1736085726961,0.24931,3610.8,3610.7,0.4347]
[1736085727460,0.24931,3610.9,3610.7,0.4347]
[1736085728962,3.2078,3611.1,3610.7,0.4347]
[1736085729162,0.24931,3610.8,3610.7,0.4347]
[1736085729462,0.2493,3610.9,3610.7,0.4347]
[1736085729662,0.24931,3610.8,3610.7,0.4347]
[1736085730056,0.24931,3610.9,3610.7,0.4347]
[1736085730259,3.2078,3611.1,3610.7,0.4347]
[1736085730564,0.24931,3610.8,3610.7,0.4347]
[1736085730762,0.24931,3610.9,3610.7,0.4347]
[1736085730951,0.24931,3610.8,3610.7,0.4347]
[1736085731964,0.24932,3610.7,3610.4,3.45713]
[1736085732165,0.24932,3610.7,3610.4,3.2078]
[1736085732166,0.4326,3610.7,3610.4,3.2078]
[1736085732564,3.2078,3611.1,3610.4,3.2078]
[1736085732763,3.2078,3611.1,3610.6,0.24932]
[1736085732964,0.24931,3610.9,3610.6,0.24932]
[1736085733371,0.2493,3611.0,3610.5,0.24932]
[1736085733574,0.24931,3610.9,3610.5,0.24933]
[1736085733872,0.24931,3610.8,3610.5,0.24933]
[1736085734061,0.4478,3610.7,3610.6,0.24932]
[1736085734255,0.8554,3610.7,3610.4,3.2078]
[1736085734461,0.8554,3610.7,3610.6,0.24932]
[1736085734862,3.2078,3611.1,3610.6,0.24932]
[1736085735069,0.4076,3611.0,3610.4,3.2078]